Cogmind - Beta 9 @@@ ROGUE MODE // 2019.10.28 @ 06:03:33 Player: MrPainting Result: Self-destructed Performance ------------- Evolutions (0) 0 Regions Visited (4) 800 Robots Destroyed (20) 100 Value Destroyed (244) 244 Prototype IDs (3) 60 Alien Tech Used (0) 0 Bonus (300) 300 TOTAL SCORE: 1504 Bonus ------- Aligned with FarCom 300 Cogmind --------- Core Integrity 164/250 Matter 137/300 Energy 650/650 System Corruption 6% Temperature Cool (0) Location -9/Mines Parts ------- Power (1) Ion Engine Propulsion (2) Light Treads Utility (2) High-capacity Storage Unit High-capacity Battery Weapon (2) Autogun Autogun Inventory (12) Ion Engine Humpback Utility Shielding YOLO Cannon Autogun Autogun Rocket Launcher Peak State ------------ Power Ion Engine Propulsion Light Treads Light Treads Utility High-capacity Storage Unit High-capacity Battery Weapon YOLO Cannon Inventory Ion Engine Utility Shielding Light EM Pulse Cannon Light EM Pulse Cannon Autogun Autogun Autogun Autogun Field Lobotomy Kit [Rating: 27] Favorites ----------- Power Ion Engine Engine Ion Engine Propulsion Light Treads Treads Light Treads Leg Aluminum Leg Utility High-capacity Battery Device PSU Rigger Storage High-capacity Battery Weapon Autogun Energy Cannon Light EM Pulse Cannon Ballistic Gun Autogun Launcher Rocket Launcher Special Weapon Field Lobotomy Kit Build | -11 -10 -10 -10 -9 ------- Run | Scr Mat Min Exi Min Slots Evolved . | . . . . . Power . | . . . . . Propulsion . | . . . . . Utility . | . . . . . Weapon . | . . . . . Parts Attached 26 | 9 6 . 6 5 Power 1 | 1 . . . . Engine 1 | 1 . . . . Core . | . . . . . Reactor . | . . . . . Propulsion 6 | 4 2 . . . Treads 4 | 2 2 . . . Leg 2 | 2 . . . . Wheel . | . . . . . Hover . | . . . . . Flight . | . . . . . Utility 5 | 1 2 . 2 . Device 1 | . . . 1 . Storage 4 | 1 2 . 1 . Processor . | . . . . . Hackware . | . . . . . Protection . | . . . . . Artifact . | . . . . . Weapon 14 | 3 2 . 4 5 Energy Gun . | . . . . . Energy Cannon 3 | . . . 1 2 Ballistic Gun 9 | 3 2 . 2 2 Ballistic Cannon . | . . . . . Launcher 1 | . . . . 1 Special Weapon 1 | . . . 1 . Impact Weapon . | . . . . . Slashing Weapon . | . . . . . Piercing Weapon . | . . . . . Special Melee Weapon . | . . . . . Unidentified Prototypes 3 | . . . 3 . Parts Lost 3 | . . . . 3 Power . | . . . . . Propulsion 1 | . . . . 1 Utility . | . . . . . Weapon 2 | . . . . 2 Highest Loss Streak 3 | . . . . 3 Average Slot Usage (%) 91 | . 95 100 84 93 Engine 14 | . 14 14 14 14 Treads 25 | . 25 28 28 22 Storage 27 | . 23 28 28 28 Ballistic Gun 20 | . 28 28 13 24 Naked Turns . | . . . . . Heaviest Build 59 | 13 47 47 59 49 Greatest Support 40 | 40 40 40 40 40 Greatest Overweight (x) 2 | . 1 1 1 2 Average Overweight (x) . | . . 1 1 1 Largest Inventory Capacity 12 | 6 12 12 12 12 Average Capacity 10 | 5 7 12 12 12 Most Carried 12 | 4 6 6 12 12 Average Carried 7 | 2 5 6 8 9 Final Capacity 12 | . . . . 12 Final Carried 9 | . . . . 9 Class Distribution -------------------- 100% | Mutant Dominant Class ---------------- Mutant | -10/Materials Mutant | -10/Mines Mutant | -10/Exiles Mutant | -9/Mines Resources | -11 -10 -10 -10 -9 ----------- Run | Scr Mat Min Exi Min Matter Collected 513 | 257 148 30 . 78 Remotely . | . . . . . Salvage Created 266 | 23 148 . . 95 Parts 12 | 3 9 . . . Haulers Intercepted . | . . . . . Recyclers Shooed . | . . . . . Parts Field Recycled . | . . . . . Retrieved Matter . | . . . . . Parts Self-Destructed . | . . . . . Prevented . | . . . . . Kills | -11 -10 -10 -10 -9 ------- Run | Scr Mat Min Exi Min Combat Hostiles Destroyed 18 | . 3 . . 15 Guns 3 | . 3 . . . Cannons 2 | . . . . 2 AOE 13 | . . . . 13 Classes Destroyed 5 | 1 2 . . 2 Tunneler 1 | 1 . . . . Watcher 1 | . 1 . . . Grunt 3 | . 3 . . . Demolisher 2 | . . . . 2 Assembled 13 | . . . . 13 Best Kill Streak 15 | 1 2 . . 15 Combat Bots Only 15 | . 2 . . 15 Max Kills in Single Turn 6 | 1 2 . . 6 Gunslinging . | . . . . . Exploded 6 | . . . . 6 Melee . | . . . . . Uniques/NPCs Destroyed . | . . . . . Combat | -11 -10 -10 -10 -9 -------- Run | Scr Mat Min Exi Min Damage Taken 842 | . 67 . . 775 Core 86 | . 10 . . 76 Absorbed by Shields . | . . . . . Core Remaining (%) 100 | 100 . . . . Volleys Fired 28 | 1 9 1 . 17 Largest 2 | 2 2 2 . 2 Hottest 112 | 40 46 46 . 112 Shots Fired 57 | 2 18 2 . 35 Gun 32 | 2 18 2 . 10 Cannon 16 | . . . . 16 Launcher 9 | . . . . 9 Special . | . . . . . Kinetic 32 | 2 18 2 . 10 Thermal . | . . . . . Explosive 9 | . . . . 9 Electromagnetic 16 | . . . . 16 Robot Hit Streak 8 | 2 6 . . 8 Robot Miss Streak 3 | . 3 . . 3 Penetration Max . | . . . . . Secondary Targets 1 | . 1 . . . Max Gunslinging Chain 1 | . 1 . . . Shots Hit Robots 32 | 2 11 . . 19 Core Hits 37 | 1 5 . . 31 Critical Hits . | . . . . . Critical Kills . | . . . . . Critical Parts Destroyed . | . . . . . Melee Attacks . | . . . . . Impact . | . . . . . Slashing . | . . . . . Piercing . | . . . . . Sneak Attacks . | . . . . . Combat Hostiles . | . . . . . Follow-up Attacks . | . . . . . Damage Inflicted 1293 | 29 186 . . 1078 Guns 285 | 29 186 . . 70 Cannons 165 | . . . . 165 Explosions 843 | . . . . 843 Melee . | . . . . . Ramming . | . . . . . Kinetic 285 | 29 186 . . 70 Thermal . | . . . . . Explosive 843 | . . . . 843 Electromagnetic 165 | . . . . 165 Impact . | . . . . . Slashing . | . . . . . Piercing . | . . . . . Highest Corruption 6 | . . . . 6 Average Corruption 6 | . . . . 6 Corruption Purged . | . . . . . Effects 5 | . . . . 5 Message Errors 2 | . . . . 2 Matter Fused 1 | . . . . 1 Data Loss (major) 1 | . . . . 1 Misfires 1 | . . . . 1 Overload Shots . | . . . . . Overflow Damage 48 | . . . . 48 Projectiles 8 | . . . . 8 Explosions 40 | . . . . 40 Melee . | . . . . . Knockbacks . | . . . . . Impact . | . . . . . Kinetic . | . . . . . Secondary . | . . . . . Self-Inflicted Damage 240 | . . . . 240 Shots 7 | . . . . 7 Rammed . | . . . . . Targets Rammed . | . . . . . Kicked . | . . . . . Crushed . | . . . . . Highest Temperature 365 | . 30 6 . 365 Average Temperature 98 | . 11 4 . 126 Received Heat Transfer 82 | . 42 . . 40 Effects 1 | . . . . 1 Shutdowns 1 | . . . . 1 Siege Activations . | . . . . . Robots Corrupted . | . . . . . Combat Hostiles . | . . . . . Parts Fried . | . . . . . Impact Corruptions . | . . . . . Robots Melted . | . . . . . Combat Hostiles . | . . . . . Parts Melted . | . . . . . Heat Transferred . | . . . . . Parts Sabotaged . | . . . . . Parts Stolen . | . . . . . Parts Stripped . | . . . . . Power Chain Reactions . | . . . . . Missiles Intercepted . | . . . . . Alert | -11 -10 -10 -10 -9 ------- Run | Scr Mat Min Exi Min Peak Influence 110 | 5 110 42 . 55 Average Influence 28 | . 46 42 . 17 Maximum Alert Level . | . . . . . Low Security (%) 100 | . . . . . Level 1 . | . . . . . Level 2 . | . . . . . Level 3 . | . . . . . Level 4 . | . . . . . Level 5 . | . . . . . High Security . | . . . . . Max Security . | . . . . . Squads Dispatched 1 | . 1 . . . Investigation . | . . . . . Extermination . | . . . . . Reinforcement 1 | . 1 . . . Assault . | . . . . . Garrison . | . . . . . Intercept . | . . . . . Construction Impeded . | . . . . . Haulers Reinforced . | . . . . . Stealth | -11 -10 -10 -10 -9 --------- Run | Scr Mat Min Exi Min Distress Signals 1 | . 1 . . . Communications Jammed . | . . . . . Distress Signals . | . . . . . Times Spotted 23 | . 6 . . 17 Peak Tracking Total 12 | . 3 . . 12 Tactical Retreats 1 | . . . . 1 Traps | -11 -10 -10 -10 -9 ------- Run | Scr Mat Min Exi Min Traps Triggered . | . . . . . Indirectly . | . . . . . Trap Hack Attempts . | . . . . . Triggered . | . . . . . Disarmed . | . . . . . Reprogrammed . | . . . . . Reused . | . . . . . Traps Extracted . | . . . . . Installed . | . . . . . Triggered . | . . . . . Machines | -11 -10 -10 -10 -9 ---------- Run | Scr Mat Min Exi Min Machines Disabled . | . . . . . Max in Single Turn . | . . . . . Machines Sabotaged . | . . . . . Garrisons Compromised . | . . . . . Overloaded Fab Kills . | . . . . . Fab Network Shutdowns . | . . . . . Hacking | -11 -10 -10 -10 -9 --------- Run | Scr Mat Min Exi Min Machines Accessed . | . . . . . Terminals . | . . . . . Fabricators . | . . . . . Repair Stations . | . . . . . Recycling Units . | . . . . . Scanalyzers . | . . . . . Garrison Access . | . . . . . Total Hacks . | . . . . . Successful . | . . . . . Failed . | . . . . . Catastrophic . | . . . . . Database Lockouts . | . . . . . Manual 1 | . . . 1 . Terminals . | . . . . . Fabricators . | . . . . . Repair Stations . | . . . . . Recycling Units . | . . . . . Scanalyzers . | . . . . . Garrison Access . | . . . . . Terminal Hacks . | . . . . . Fabricator Hacks . | . . . . . Repair Station Hacks . | . . . . . Recycling Unit Hacks . | . . . . . Scanalyzer . | . . . . . Garrison Access Hacks . | . . . . . Unauthorized Hacks . | . . . . . Terminals . | . . . . . Fabricators . | . . . . . Repair Stations . | . . . . . Recycling Units . | . . . . . Scanalyzers . | . . . . . Garrison Access . | . . . . . Data Cores Recovered . | . . . . . Used . | . . . . . Hacking Detections . | . . . . . Full Trace Events . | . . . . . Feedback Events . | . . . . . Feedback Blocked . | . . . . . Robot Schematics Acquired . | . . . . . Robots Built . | . . . . . Matter . | . . . . . Time . | . . . . . Total Robot Build Rating . | . . . . . Part Schematics Acquired . | . . . . . Parts Built . | . . . . . Matter . | . . . . . Time . | . . . . . Total Part Build Rating . | . . . . . Parts Repaired . | . . . . . Time . | . . . . . Parts Recycled . | . . . . . Recycled Matter . | . . . . . Retrieved Matter . | . . . . . Retrieved Components . | . . . . . Parts Scanalyzed . | . . . . . Part Schematics Acquired . | . . . . . Parts Damaged . | . . . . . Bothacking | -11 -10 -10 -10 -9 ------------ Run | Scr Mat Min Exi Min Used RIF Installer . | . . . . . Robots Hacked . | . . . . . Non-combat . | . . . . . Combat . | . . . . . Robot Hacks Applied . | . . . . . Relay Couplers Released . | . . . . . Robots Rewired . | . . . . . Allies Hacked . | . . . . . Hacks Repelled . | . . . . . Allies | -11 -10 -10 -10 -9 -------- Run | Scr Mat Min Exi Min Total Allies . | . . . . . Largest Group . | . . . . . Highest-Rated Group . | . . . . . Highest-Rated Ally . | . . . . . Total Orders . | . . . . . Ally Attacks . | . . . . . Total Damage . | . . . . . Kills . | . . . . . Allies Corrupted . | . . . . . Allies Melted . | . . . . . Intel | -11 -10 -10 -10 -9 ------- Run | Scr Mat Min Exi Min Robot Analysis Total . | . . . . . Derelict Logs Recovered . | . . . . . Drone Launches . | . . . . . Drone Recoveries . | . . . . . Exploration | -11 -10 -10 -10 -9 ------------- Run | Scr Mat Min Exi Min Turns Passed 1335 | 86 220 160 514 355 Spaces Moved 682 | 51 109 88 278 156 Core 7 | 7 . . . . Treads 636 | 16 98 88 278 156 Legs 39 | 28 11 . . . Wheels . | . . . . . Hover . | . . . . . Flight . | . . . . . Fastest Speed 50 | 50 120 180 180 180 Average Speed 174 | 122 160 180 180 189 Slowest Speed 200 | 160 180 180 180 200 Overloaded Moves . | . . . . . Propulsion Burnouts . | . . . . . Robots Hopped . | . . . . . Cave-ins Triggered 1 | . . . . 1 Exploration Rate (%) 33 | 3 26 28 68 42 Regions Visited 4 Branch Regions 3 Pre-discovered Areas . | . . . . . Known Exits Taken . | . . . . . Unknown Exits Taken 4 | 1 1 1 1 . Scrap Searched 2 | . . 1 . 1 Spaces Dug . | . . . . . Terrain Destroyed 94 | . . . . 94 Melee . | . . . . . Projectile . | . . . . . AOE 94 | . . . . 94 Actions | -11 -10 -10 -10 -9 --------- Run | Scr Mat Min Exi Min Total 778 | 71 141 88 295 183 Wait 8 | . 5 . . 3 Move 678 | 50 108 87 277 156 Hop . | . . . . . Pick Up 23 | 10 7 . 5 1 Fast Attach 2 | 1 1 . . . Attach 16 | 5 2 . 6 3 Detach 5 | . . . 4 1 Swap 8 | 3 3 . . 2 Drop 10 | 1 6 . 3 . Fire 28 | 1 9 1 . 17 Melee . | . . . . . Ram . | . . . . . Kick . | . . . . . Crush . | . . . . . Escape Stasis . | . . . . . Rewire . | . . . . . Trap . | . . . . . Miscellaneous . | . . . . . Route ------- -11/Scrapyard -10/Materials -10/Mines (discovered 2 exits: [*Mat] / *Exi) -10/Exiles -9/Mines History --------- Turn | Location | Event 16 | -11/Scrapyard | Discovered new exit (range 16) 87 | -11/Scrapyard | Entered Materials 276 | -10/Materials | Discovered new exit (range 13) 302 | -10/Materials | Build established: Mutant 307 | -10/Materials | Entered Mines 310 | -10/Mines | Met a Derelict bent on vengeance 387 | -10/Mines | Discovered new exit (range 9) 459 | -10/Mines | Deemed a non-threat by the Exiles lab entrance 459 | -10/Mines | Discovered new exit (range 5) 467 | -10/Mines | Entered Exiles 511 | -10/Exiles | Met 8R-AWN 538 | -10/Exiles | Met EX-HEX 595 | -10/Exiles | Met EX-BIN 631 | -10/Exiles | Aligned with FarCom system 633 | -10/Exiles | Given EX-Vault access code 674 | -10/Exiles | Opened EX-Vault 683 | -10/Exiles | Found Prototype Energy Cannon 686 | -10/Exiles | Identified YOLO Cannon 694 | -10/Exiles | Found Prototype Special Weapon 695 | -10/Exiles | Identified Field Lobotomy Kit 700 | -10/Exiles | Found Prototype Device 702 | -10/Exiles | Identified PSU Rigger 744 | -10/Exiles | Warned to stay clear of 0b10 Research branches 861 | -10/Exiles | Met EX-DEC 961 | -10/Exiles | Discovered new exit (range 14) 981 | -10/Exiles | Left Exiles lab with YOLO Cannon 981 | -10/Exiles | Entered Mines 1087 | -9/Mines | Received a Rocket Launcher from a helpful Derelict 1129 | -9/Mines | Assembled infested the area 1192 | -9/Mines | Crushed by falling debris 1210 | -9/Mines | Destroyed 15 combat bots 1223 | -9/Mines | Lost 3 parts (1n2w) 1336 | -9/Mines | Self-destructed Last Messages --------------- 01192_ Crushed by falling debris. 01192_ Lgt. EM Pulse Cannon destroyed. 01192_ System corrupted by crushing effect (+1). 01192_ Lgt. EM Pulse Cannon destroyed. 01192_ System corrupted by crushing effect (+5). 01192_ U-05 Engineer builds a Wall. 01197_ The unstable cave ceiling collapses. 01215_ System corrupted: Substantial component data lost. 01216_ The unstable cave ceiling collapses. 01218_ R-06 Scavenger collects Structural Scanner. 01222_ The unstable cave ceiling collapses. 01226_ R-06 Scavenger collects Wheel. 01230_ R-06 Scavenger collects Aluminum Leg. 01242_ Acquired 29 matter. 01246_ Acquired 5 matter. 01271_ System corrupted: FCS attempts to trigger Autogun. 01271_ System corrupted: Autogun misfires. 01287_ AKL2JIIX:SBG2FNE8%AK:<8N0/ LBFOSG#R 01308_ System corrupted: Matter fused (-6). 01332_ OH&2P7J#OX3ZP>QSU0ROS9GSIU0PPQN Map ----- +----------------------------------------------------+ | ??????????????????# % #???????????? | | ??????????????????#### # ## # ##???????????? | | ???????????????????# # # ## # ##??????????? | | ???????????????????## # # #??????????? | | ????????????????????## # # ##??????????? | | ?????????????????????#### # ### #???????? | | ????????????????????######### #???????? | | ????????????????????# ######???????? | | ????????????????????# ###????????????? | | ????????????????????# ###### ##??????????????? | | ????????????????????# ?????## ##??????????????? | | ???????????????????## ##??#### #??????????????? | | ???????????????????? #### ## ##?????????????? | | ?????????????????????# ## # " ##????????????? | | ?????????????????????# ## =# #????????????? | | ?????????????????????# [% #????????????? | | ?????????????????????# [ % #????????????? | | ????????????????????## # #% ##????????????? | | ????????????????????# ## # #?????????????? | | ????????????????????# #### ## ##?????????????? | | ????????????????##### ##?#######??????????????? | | ???????????????## ## ##?????????????????????? | | ???????????????# #?????????????????????? | | ???????????????# #?????????????????????? | | ???????????????## ##????????????????????? | | ????????????????# @ #?????s?s????????????? | | ????????????????## #??????s?????????????? | | ?????????????????###### ##????????????????????? | | ??????????????????????######?????????????????????? | | ?????????????????????????????????????????????????? | | | | | | | | | | | | | | | | | | | | | | | | | | | | | | | | | | | | | | | | | +----------------------------------------------------+ Best States ------------- Heat Dissipation 25 Energy Generation 10 Energy Capacity 650 Matter Stores 299 Matter Capacity 300 Sight Range 16 Terrain Scan Density 10 Evasion (%) 40 Recoil Reduction 2 Item Schematics ----------------- None Robot Schematics ------------------ None Fabricated ------------ Nothing Alien Tech Used ----------------- None Achievements -------------- None Challenges ------------ None Game ------ Seed MobileDefenseSplitter Manual? 0 Play Time 00:11:36 Cumulative 33.7 hours Start 2019.10.28 @ 05:52:34 End 2019.10.28 @ 06:03:33 Sessions 1 Manual Loads 0 Difficulty Rogue Special Mode None Game No. 54 Rogue 54 Adventurer 0 Explorer 0 Win Type - Total 0 Types 0/0/0/0/0/0/0 Lore% 26 Gallery% 30 Achievement% 24 Wizard Run 0 Options --------- ASCII 0 Keyboard 0 Movement Mouse Keybinds 0 Fullscreen 1 Font 18/SmallcapsGlow Map View 76x50 Tactical HUD 1 Map Filters NONE Filters NONE Steam 1 RUN: 57802beb-16de-4cbd-acd7-7a512dee2ce8